bitfinex-derivatives/quotes_BTCF0:USTF0_20260131
["timestamp","ask_amount","ask_price","bid_price","bid_amount"]
[1769893281214,0.00946386,78182.0,78160.0,0.27992533]
[1769893281411,0.02226686,78209.0,78182.0,0.012807]
[1769893281613,0.00946386,78205.0,78181.0,0.012808]
[1769893281918,0.00946386,78187.0,78160.0,0.26687898]
[1769893282116,0.00946386,78183.0,78160.0,0.26687898]
[1769893282312,0.00946386,78185.0,78160.0,0.26687898]
[1769893282516,0.012808,78180.0,78160.0,0.26687898]
[1769893282819,0.00946386,78179.0,78160.0,0.26687898]
[1769893283619,0.00946386,78200.0,78172.0,0.012809]
[1769893283919,0.09224,78199.0,78180.0,0.26687898]
[1769893284117,0.09224,78201.0,78181.0,0.012808]
[1769893284723,0.09224,78201.0,78180.0,0.26687898]
[1769893285116,0.012805,78199.0,78180.0,0.26687898]
[1769893285521,0.04999917,78197.0,78180.0,0.26687898]
[1769893285720,0.04999917,78189.0,78170.0,0.26687898]
[1769893285921,0.04999917,78193.0,78170.0,0.26687898]
[1769893286420,0.012807,78186.0,78170.0,0.26687898]
[1769893286621,0.012807,78184.0,78170.0,0.26687898]
[1769893286920,0.09224,78185.0,78170.0,0.26687898]
[1769893287120,0.08803629,78185.0,78170.0,0.27968798]
[1769893287324,0.08803629,78185.0,78170.0,0.26687898]
[1769893287520,0.08803629,78185.0,78148.0,0.09224]
[1769893287521,0.012807,78184.0,78158.0,0.012811]
[1769893287721,0.012809,78172.0,78160.0,0.26687898]
[1769893287928,0.00946386,78163.0,78140.0,0.26687898]
[1769893288219,0.00946386,78145.0,78130.0,0.02292544]
[1769893288419,0.10170386,78144.0,78120.0,0.26687898]
[1769893288621,0.09224,78143.0,78120.0,0.26687898]
[1769893288823,0.14223917,78143.0,78121.0,0.012817]
[1769893289021,0.012815,78134.0,78120.0,0.26687898]
[1769893289226,0.04999917,78126.0,78110.0,0.26687898]
[1769893289428,0.09224,78125.0,78110.0,0.26687898]
[1769893289619,0.012817,78123.0,78110.0,0.26687898]
[1769893289823,0.00946386,78110.0,78090.0,0.21687981]
[1769893290025,0.09234255,78109.0,78093.0,0.012822]
[1769893290427,0.00946386,78120.0,78100.0,0.012821]
[1769893290722,0.13750483,78129.0,78099.0,0.26687898]
[1769893290924,0.12804097,78129.0,78120.0,0.012818]
[1769893291130,0.09224,78135.0,78126.0,0.012817]
[1769893291330,0.09224,78135.0,78121.0,0.012817]
[1769893291724,0.09224,78135.0,78125.0,0.012817]
[1769893291919,0.09224,78135.0,78119.0,0.26687898]
[1769893292125,0.09224,78140.0,78132.0,0.012816]
[1769893292624,0.12799672,78147.0,78119.0,0.26687898]
[1769893292825,0.00946386,78152.0,78137.0,0.012815]
[1769893293134,0.55767672,78151.0,78136.0,0.012815]
[1769893293332,0.55767672,78151.0,78122.0,0.012817]
[1769893293520,0.09224,78165.0,78156.0,0.012812]
[1769893293721,0.00946386,78172.0,78160.0,0.012811]
[1769893293926,0.09224,78173.0,78140.0,0.26687898]
[1769893294330,0.09224,78173.0,78151.0,0.012812]
[1769893294534,0.00999999,78211.0,78155.0,0.00967068]
[1769893294838,0.00999999,78211.0,78089.0,0.00016161]
[1769893294839,0.12794841,78196.0,78180.0,0.26687898]
[1769893295229,0.09224,78197.0,78130.0,0.064081]
[1769893295230,0.00999999,78195.0,78164.0,0.01281]
[1769893295432,0.00999999,78193.0,78171.0,0.012809]
[1769893295736,0.00999999,78193.0,78160.0,0.26687898]
[1769893295923,0.12789686,78192.0,78160.0,0.26687898]
[1769893296127,0.12789686,78192.0,78177.0,0.012808]
[1769893296325,0.09224,78197.0,78149.0,0.012813]
[1769893296326,0.09224,78197.0,78161.0,0.09224]
[1769893296526,0.09224,78197.0,78178.0,0.012808]
[1769893296733,0.001,78193.0,78178.0,0.012808]
[1769893297325,0.12791649,78196.0,78178.0,0.012808]
[1769893298238,0.01011497,78195.0,78178.0,0.012808]
[1769893298436,0.01011497,78195.0,78160.0,0.26687898]
[1769893298638,0.01011497,78195.0,78161.0,0.09224]
[1769893298829,0.12789849,78194.0,78171.0,0.012809]
[1769893299035,0.12789849,78194.0,78178.0,0.001]
[1769893299636,0.09224,78197.0,78181.0,0.012807]
[1769893299938,0.12790586,78196.0,78184.0,0.012807]
[1769893300331,0.12790586,78196.0,78180.0,0.26687898]
[1769893300332,0.09224,78197.0,78187.0,0.012806]
[1769893300527,0.33744,78205.0,78180.0,0.26687898]
[1769893300528,0.42968,78205.0,78180.0,0.26687898]
[1769893300936,0.12789359,78204.0,78180.0,0.26687898]
[1769893301132,0.13797186,78204.0,78180.0,0.26687898]
[1769893301338,0.11097186,78204.0,78183.0,0.012807]
[1769893301541,0.11097186,78204.0,78179.0,0.012808]
[1769893302035,0.11097186,78204.0,78184.0,0.001]
[1769893302628,0.11097186,78204.0,78188.0,0.012806]
[1769893302833,0.11097186,78204.0,78184.0,0.012807]
[1769893303232,0.11097186,78204.0,78172.0,0.00952641]
[1769893303233,0.11097186,78204.0,78187.0,0.012806]
[1769893303632,0.11197186,78204.0,78187.0,0.012806]
[1769893303837,0.11197186,78204.0,78183.0,0.012807]
[1769893304234,0.0922,78203.0,78183.0,0.012807]
[1769893304837,0.0922,78203.0,78186.0,0.012807]
[1769893305140,0.0922,78203.0,78188.0,0.012806]
[1769893305734,0.0098972,78214.0,78188.0,0.012806]
[1769893306139,0.12788623,78206.0,78183.0,0.001]
[1769893306339,0.0922,78205.0,78183.0,0.001]
[1769893306543,0.0922,78205.0,78188.0,0.012806]
[1769893306741,0.2200756,78205.0,78188.0,0.013806]
[1769893306941,0.0098972,78204.0,78188.0,0.013806]
[1769893307142,0.0098972,78204.0,78188.0,0.001]
[1769893307345,0.0098972,78204.0,78189.0,0.012806]
[1769893307842,0.0098972,78204.0,78188.0,0.013806]
[1769893308040,0.0098972,78204.0,78172.0,0.00952641]
[1769893308246,0.0098972,78202.0,78179.0,0.012808]
[1769893308443,0.12578097,78203.0,78179.0,0.012808]
[1769893308646,0.012804,78204.0,78179.0,0.012808]
[1769893308842,0.33732,78203.0,78161.0,0.09224]
[1769893309147,0.1513069,78202.0,78177.0,0.012808]
[1769893309343,0.012805,78200.0,78174.0,0.012809]
[1769893309545,0.1385029,78199.0,78174.0,0.012809]
[1769893309944,0.12790667,78198.0,78176.0,0.012808]
[1769893310344,0.14071167,78198.0,78174.0,0.012809]
[1769893310547,0.33732,78203.0,78161.0,0.09224]
[1769893310548,0.0098972,78193.0,78161.0,0.09224]
[1769893310740,0.0098972,78191.0,78174.0,0.012809]
[1769893311149,0.0098972,78191.0,78170.0,0.012809]
[1769893311356,0.0098972,78185.0,78146.0,0.012813]
[1769893311539,0.0098972,78176.0,78149.0,0.012813]
[1769893311743,0.0098972,78174.0,78152.0,0.012812]
[1769893311943,0.0098972,78174.0,78154.0,0.012812]
[1769893312548,0.12793613,78173.0,78156.0,0.00952641]
[1769893312748,0.0922,78182.0,78156.0,0.00952641]
[1769893313049,0.0098972,78181.0,78145.0,0.00965173]
[1769893313248,0.0098972,78180.0,78155.0,0.012812]
[1769893313643,0.0098972,78180.0,78145.0,0.00965173]
[1769893313644,0.0098972,78171.0,78145.0,0.00012532]
[1769893313843,0.0098972,78171.0,78149.0,0.012813]
[1769893314246,0.0098972,78169.0,78145.0,0.01293832]
[1769893314445,0.0098972,78158.0,78145.0,0.00012532]
[1769893314647,0.0098972,78156.0,78134.0,0.0922]
[1769893314949,0.0098972,78152.0,78119.0,0.0922]
[1769893315149,0.0098972,78150.0,78119.0,0.0922]
[1769893315546,0.00010038,78149.0,78128.0,0.012816]
[1769893315754,0.00010038,78149.0,78124.0,0.012817]
[1769893316050,0.12798279,78148.0,78121.0,0.012817]
[1769893316251,0.012813,78146.0,78121.0,0.012817]
[1769893316848,0.12798116,78145.0,78121.0,0.012817]
[1769893317655,0.12798116,78145.0,78124.0,0.012817]
[1769893317848,0.12798116,78145.0,78119.0,0.0922]
[1769893318151,0.00010038,78149.0,78130.0,0.012816]
[1769893318554,0.12798853,78148.0,78130.0,0.012816]
[1769893318750,0.09224,78147.0,78127.0,0.012816]
[1769893319454,0.00010038,78149.0,78130.0,0.012816]
[1769893319848,0.12798034,78148.0,78130.0,0.012816]
[1769893320050,0.12798034,78148.0,78127.0,0.012816]
[1769893320249,0.22022034,78148.0,78127.0,0.012816]
[1769893320551,0.22022034,78148.0,78102.0,0.00952641]
[1769893320552,0.0098972,78137.0,78102.0,0.00952641]
[1769893320752,0.0098972,78137.0,78098.0,0.09224]
[1769893320753,0.012817,78127.0,78105.0,0.01282]
[1769893320949,0.012817,78124.0,78098.0,0.09224]
[1769893321154,0.0098972,78118.0,78094.0,0.012822]
[1769893321554,0.012818,78117.0,78091.0,0.012822]
[1769893321751,0.12802294,78117.0,78073.0,0.00952641]
[1769893321948,0.012821,78101.0,78074.0,0.012825]
[1769893322149,0.15122397,78116.0,78074.0,0.012825]
[1769893322150,0.012821,78099.0,78074.0,0.012825]
[1769893322447,0.09224,78098.0,78074.0,0.012825]
[1769893322650,0.09224,78098.0,78070.0,0.012826]
[1769893322947,0.012825,78075.0,78046.0,0.00952641]
[1769893323153,0.00010036,78074.0,78046.0,0.01283]
[1769893323652,0.00999756,78074.0,78042.0,0.01283]
[1769893323953,0.0098972,78072.0,78039.0,0.0001614]
[1769893324149,0.13779811,78071.0,78039.0,0.0001614]
[1769893324349,0.0098972,78070.0,78039.0,0.0001614]
[1769893324655,0.0098972,78069.0,78039.0,0.0001614]
[1769893324951,0.09224,78075.0,78019.0,0.012834]
[1769893324952,0.0098972,78067.0,78019.0,0.012834]
[1769893325150,0.0098972,78065.0,78015.0,0.09224]
[1769893325352,0.0098972,78065.0,78025.0,0.012833]
[1769893325556,0.0227242,78065.0,78025.0,0.012833]
[1769893325756,0.0227242,78065.0,78003.0,0.00952641]
[1769893325757,0.0098972,78060.0,78016.0,0.012835]
[1769893325950,0.0098972,78058.0,78016.0,0.012835]
[1769893326257,0.0098972,78056.0,78003.0,0.00952641]
[1769893326457,0.0098972,78054.0,78005.0,0.00952641]
[1769893326760,0.0098972,78054.0,78000.0,0.14228]
[1769893326761,0.00011372,78053.0,78036.0,0.012831]
[1769893327052,0.12825806,78053.0,78036.0,0.012831]
[1769893327259,0.12825806,78053.0,78039.0,0.012831]
[1769893327450,0.13749062,78053.0,78019.0,0.00952641]
[1769893327654,0.00923256,78052.0,78005.0,0.00972488]
[1769893327861,0.00923256,78052.0,78028.0,0.00849533]
[1769893328155,0.00923256,78052.0,78037.0,0.012831]
[1769893328360,0.00030978,78050.0,78032.0,0.012832]
[1769893328560,0.00015897,78049.0,78035.0,0.012831]
[1769893328870,0.00030978,78048.0,78035.0,0.012831]
[1769893329158,0.12844919,78048.0,78035.0,0.012831]
[1769893329359,4.1e-07,78048.0,78044.0,0.01283]
[1769893329560,0.00015897,78049.0,78044.0,0.01283]
[1769893329762,0.12813695,78047.0,78040.0,0.012831]
[1769893330157,0.00015897,78049.0,78040.0,0.00861223]
[1769893330363,0.00030978,78045.0,78015.0,0.09228]
[1769893330866,0.12813366,78044.0,78015.0,0.09228]
[1769893331066,0.12813366,78044.0,78029.0,0.012833]
[1769893331564,0.12813366,78044.0,78015.0,0.09228]
[1769893331965,0.12813366,78044.0,78028.0,0.012833]
[1769893332264,6.496e-05,78041.0,78015.0,0.001]
[1769893332464,6.496e-05,78039.0,77999.0,0.09232]
[1769893332855,0.12830005,78038.0,78009.0,0.012836]
[1769893333061,0.12830005,78038.0,77999.0,0.09232]
[1769893333259,0.012834,78020.0,77985.0,0.02577519]
[1769893333454,0.43019001,78019.0,78000.0,0.04444918]
[1769893333667,0.012838,77998.0,77979.0,0.00012932]
[1769893333863,0.09232,77997.0,77979.0,0.00012932]
[1769893334062,0.09232,77996.0,77979.0,0.00012932]
[1769893334263,0.09232,77996.0,77985.0,0.00100018]
[1769893334457,0.12822567,77995.0,77985.0,0.00100018]
[1769893334663,0.12822567,77995.0,77988.0,0.00100018]
[1769893334859,0.09232,78008.0,77996.0,0.00100018]
[1769893335161,0.00064585,78005.0,77979.0,0.00012932]
[1769893335357,0.12822567,78007.0,77979.0,0.00012932]
[1769893335358,0.012837,78002.0,77979.0,0.00112932]
[1769893335564,0.012836,78007.0,77979.0,0.00112932]
[1769893335771,0.12820184,78001.0,77979.0,0.00112932]
[1769893336066,0.01284,77986.0,77979.0,3.2e-07]
[1769893336271,0.012841,77977.0,77950.0,0.09236]
[1769893336470,0.09236,77976.0,77950.0,0.09236]
[1769893336773,0.09236,77976.0,77938.0,0.012847]
[1769893336774,0.012842,77972.0,77938.0,0.012847]
[1769893336962,0.012844,77962.0,77938.0,0.00100018]
[1769893337266,0.012846,77949.0,77917.0,0.012851]
[1769893337468,0.09245607,77948.0,77911.0,0.01004775]
[1769893337667,0.012843,77964.0,77931.0,0.012849]
[1769893337868,0.012844,77959.0,77929.0,0.012849]
[1769893338063,0.09236,77958.0,77929.0,0.012849]
[1769893338269,0.09236,77958.0,77936.0,0.00100018]
[1769893338574,0.12829806,77957.0,77938.0,0.00100018]
[1769893338875,0.00016064,77956.0,77935.0,0.00100018]
[1769893339078,0.00016064,77956.0,77941.0,0.00100018]
[1769893339376,0.00016064,77956.0,77924.0,0.01004775]
[1769893339571,0.12828983,77955.0,77931.0,0.00100018]
[1769893339769,0.12828983,77955.0,77931.0,0.01384918]
[1769893339971,0.12828983,77955.0,77935.0,0.00100018]
[1769893340170,0.12828983,77955.0,77924.0,0.01004775]
[1769893340171,0.12828983,77955.0,77931.0,0.00100018]
[1769893340474,0.12828983,77955.0,77935.0,0.00100018]
[1769893340674,0.12828983,77955.0,77931.0,0.00100018]
[1769893341072,0.00011121,77954.0,77914.0,0.00996292]
[1769893341273,0.012846,77947.0,77921.0,0.00100018]
[1769893341475,0.012846,77947.0,77923.0,0.00100018]
[1769893341772,0.1283137,77946.0,77927.0,0.00100018]
[1769893341974,0.1283137,77946.0,77926.0,0.00100018]
[1769893342174,0.1283137,77946.0,77927.0,0.00100018]
[1769893342373,0.1283137,77946.0,77921.0,0.01385018]
[1769893342580,0.00043846,77944.0,77911.0,0.0924]
[1769893342868,0.0001616,77945.0,77913.0,0.00100018]
[1769893342869,0.012848,77935.0,77913.0,0.00100018]
[1769893343076,0.012848,77933.0,77912.0,0.00100018]
[1769893343373,0.012848,77933.0,77905.0,0.000161]
[1769893343374,0.01285,77922.0,77905.0,0.000161]
[1769893343678,0.12833263,77932.0,77920.0,0.00100018]
[1769893343976,0.0924,77934.0,77922.0,0.00100018]
[1769893344177,0.0924,77934.0,77907.0,0.00985384]
[1769893344178,0.12833263,77931.0,77907.0,0.00985384]
[1769893344372,0.12833263,77931.0,77912.0,0.00100018]
[1769893344566,0.01295693,77930.0,77910.0,0.00100018]
[1769893344776,0.01295693,77930.0,77912.0,0.00100018]
[1769893344977,0.01295693,77930.0,77909.0,0.00100018]
[1769893345277,0.12832358,77929.0,77909.0,0.00100018]
[1769893345472,0.12832358,77929.0,77911.0,0.00100018]
[1769893345679,0.12832358,77929.0,77910.0,0.00100018]
[1769893345879,0.01285,77925.0,77908.0,0.00100018]
[1769893346374,0.012851,77915.0,77896.0,0.0924]
[1769893346579,0.012851,77916.0,77896.0,0.0924]
[1769893346784,0.012852,77913.0,77887.0,0.00987482]
[1769893347273,0.00010133,77912.0,77888.0,0.012856]
[1769893347680,0.12847103,77912.0,77888.0,0.00988383]
[1769893347877,0.12847103,77912.0,77889.0,0.012855]
[1769893348379,0.12847103,77912.0,77895.0,0.00984896]
[1769893348678,0.0928931,77935.0,77903.0,0.012853]
[1769893348873,0.012849,77929.0,77903.0,0.012853]
[1769893349074,0.012849,77933.0,77900.0,0.00984896]
[1769893349276,0.012849,77933.0,77909.0,0.012852]
[1769893349480,0.09244,77935.0,77914.0,0.012851]
[1769893349481,0.00012199,77932.0,77914.0,0.012851]
[1769893349682,0.012846,77948.0,77921.0,0.00984896]
[1769893349881,0.0004531,77953.0,77917.0,0.09248]
[1769893350180,0.012848,77936.0,77907.0,0.09248]
[1769893350481,0.09248,77936.0,77909.0,0.012852]
[1769893350678,0.12835766,77935.0,77916.0,0.0098611]
[1769893350883,4.561e-05,77935.0,77919.0,0.012851]
[1769893351180,4.561e-05,77935.0,77918.0,0.012851]
[1769893351377,4.561e-05,77935.0,77916.0,0.0098611]
[1769893351774,4.561e-05,77935.0,77917.0,0.012851]
[1769893352075,0.12832522,77934.0,77907.0,0.09248]
[1769893352280,0.012849,77929.0,77908.0,0.0098611]
[1769893352677,0.012849,77932.0,77908.0,0.0227131]
[1769893353379,4.561e-05,77935.0,77914.0,0.012851]
[1769893353577,4.561e-05,77935.0,77907.0,0.09248]
[1769893353578,0.12833675,77931.0,77907.0,0.09248]
[1769893353883,0.012849,77928.0,77908.0,0.001]
[1769893354072,0.012852,77910.0,77891.0,0.09248]
[1769893354273,4.561e-05,77909.0,77891.0,0.09248]
[1769893356078,4.561e-05,77909.0,77887.0,0.012856]
[1769893356284,0.012852,77908.0,77887.0,0.012856]
[1769893356480,4.561e-05,77909.0,77878.0,0.01274002]
[1769893356481,4.561e-05,77909.0,77890.0,0.00973847]
[1769893356678,0.012847,77942.0,77896.0,0.00972488]
[1769893356679,0.012851,77915.0,77896.0,0.00972488]
[1769893356874,0.09248,77932.0,77886.0,0.00972488]
[1769893356875,0.012851,77918.0,77886.0,0.00972488]
[1769893357074,0.00083018,77921.0,77888.0,0.012856]
[1769893357281,0.00083018,77921.0,77890.0,0.012855]
[1769893357483,0.00083018,77921.0,77892.0,0.012855]
[1769893357683,0.12836228,77920.0,77886.0,0.00972488]
[1769893358184,0.00083018,77916.0,77885.0,0.09248]
[1769893358379,0.09252,77927.0,77891.0,0.00972327]
[1769893358579,0.00085895,77928.0,77892.0,0.012855]
[1769893358779,0.12836476,77924.0,77904.0,0.012853]
[1769893358976,0.09252,77927.0,77906.0,0.00971368]
[1769893359176,0.12836476,77923.0,77906.0,0.00971368]
[1769893359580,0.09252,77927.0,77906.0,0.00971368]
[1769893359781,0.01285,77925.0,77906.0,0.00971368]
[1769893359984,0.01285,77923.0,77906.0,0.00971368]
[1769893360187,0.09252,77927.0,77897.0,0.00971368]
[1769893360486,0.12834581,77922.0,77897.0,0.00971368]
[1769893360686,0.01285,77924.0,77897.0,0.00971368]
[1769893361081,0.01285,77922.0,77897.0,0.00971368]
[1769893361287,0.012851,77920.0,77900.0,0.012854]
[1769893361480,0.012851,77920.0,77897.0,0.02256768]
[1769893361680,0.09252,77927.0,77902.0,0.012853]
[1769893361892,0.09252,77927.0,77901.0,0.012854]
[1769893362083,0.12835405,77926.0,77901.0,0.012854]
[1769893362282,0.12835405,77926.0,77898.0,0.012854]
[1769893362682,0.01285,77922.0,77900.0,0.012854]
[1769893363283,0.012851,77920.0,77900.0,0.012854]
[1769893363484,0.12834746,77921.0,77900.0,0.012854]
[1769893363885,0.01285,77922.0,77900.0,0.012854]
[1769893364293,0.01285,77922.0,77897.0,0.00971368]
[1769893364492,0.09378925,77927.0,77897.0,0.00971368]
[1769893364792,0.012851,77919.0,77898.0,0.012854]
[1769893365093,0.12835158,77926.0,77897.0,0.02256768]
[1769893365291,0.15200045,77925.0,77897.0,0.02256768]
[1769893365485,0.12835158,77926.0,77897.0,0.02256768]
[1769893365486,0.15200045,77924.0,77897.0,0.02256768]
[1769893365682,0.15200045,77923.0,77897.0,0.02256768]
[1769893365887,0.012851,77917.0,77897.0,0.012854]
[1769893366086,0.15200045,77916.0,77897.0,0.012854]
[1769893367793,0.012851,77917.0,77897.0,0.012854]
[1769893367987,0.012852,77914.0,77894.0,0.012855]
[1769893368492,0.012852,77914.0,77896.0,0.012854]
[1769893368694,0.012851,77916.0,77896.0,0.012854]
[1769893369488,0.012851,77915.0,77894.0,0.012855]
[1769893369890,0.12381063,77919.0,77908.0,0.0099589]
[1769893370090,0.012849,77931.0,77910.0,0.012852]
[1769893370293,0.012848,77936.0,77904.0,0.0099589]
[1769893370500,0.01285,77924.0,77905.0,0.0228119]
[1769893370794,0.01285,77924.0,77906.0,0.0099589]
[1769893371196,0.00144812,77932.0,77900.0,0.0099589]
[1769893371391,0.01285,77923.0,77904.0,0.012853]
[1769893371698,0.012849,77929.0,77904.0,0.0099589]
[1769893371999,0.01285,77923.0,77905.0,0.012853]
[1769893372201,0.01285,77923.0,77904.0,0.0099589]
[1769893372496,0.012849,77931.0,77904.0,0.0099589]
[1769893372695,0.09252,77930.0,77904.0,0.0099589]
[1769893372898,0.01285,77921.0,77904.0,0.0099589]
[1769893373488,0.01285,77925.0,77904.0,0.0099589]
[1769893373692,0.01285,77924.0,77905.0,0.012853]
[1769893374799,0.09252,77930.0,77905.0,0.012853]
[1769893375196,0.01285,77925.0,77905.0,0.012853]
[1769893375392,0.12834581,77929.0,77907.0,0.012853]
[1769893375598,0.01285,77926.0,77904.0,0.0099589]
[1769893376301,0.12834499,77925.0,77904.0,0.0099589]
[1769893376899,0.12834499,77925.0,77906.0,0.012853]
[1769893377498,0.14119499,77925.0,77906.0,0.012853]
[1769893377797,0.14119499,77925.0,77905.0,0.012853]
[1769893378104,0.01285,77924.0,77905.0,0.012853]
[1769893378304,0.00151114,77918.0,77877.0,0.0099589]
[1769893378600,0.0014963,77903.0,77876.0,0.0099589]
[1769893378795,0.012853,77904.0,77876.0,0.0099589]
[1769893379000,0.09252,77905.0,77880.0,0.0099589]
[1769893379193,0.09252,77905.0,77882.0,0.0099589]
[1769893379603,0.01285,77921.0,77893.0,0.0099589]
[1769893379802,0.012851,77919.0,77893.0,0.0099589]
[1769893380002,0.1460332,77918.0,77893.0,0.0099589]
[1769893380192,0.09252,77937.0,77903.0,0.0099589]
[1769893380391,0.02239874,77946.0,77913.0,0.0099589]
[1769893380596,0.02239874,77946.0,77894.0,0.14123541]
[1769893380597,0.12838041,77939.0,77918.0,0.0099589]
[1769893380792,0.012846,77950.0,77918.0,0.0099589]
[1769893380994,0.012846,77946.0,77918.0,0.0099589]
[1769893381299,0.12833675,77949.0,77936.0,0.0099589]
[1769893381502,0.012843,77965.0,77937.0,0.0099589]
[1769893381903,0.012843,77963.0,77937.0,0.0099589]
[1769893382199,0.00955274,77970.0,77941.0,0.0099589]
[1769893382399,0.012843,77969.0,77943.0,0.0099589]
[1769893382603,0.012843,77968.0,77943.0,0.0099589]
[1769893382907,0.00955274,77980.0,77946.0,0.0099589]
[1769893383106,0.10207274,77979.0,77946.0,0.0099589]
[1769893383299,0.012842,77973.0,77946.0,0.0099589]
[1769893383800,0.012842,77970.0,77946.0,0.0099589]
[1769893384104,0.001,77965.0,77942.0,0.02297245]
[1769893384304,0.001,77965.0,77943.0,0.0099589]
[1769893385001,0.012843,77964.0,77943.0,0.0099589]
[1769893385194,0.001,77965.0,77943.0,0.0099589]
[1769893385396,0.013843,77965.0,77943.0,0.0099589]
[1769893385594,0.012843,77965.0,77943.0,0.0099589]
[1769893385801,0.012844,77962.0,77943.0,0.0099589]
[1769893386907,0.00955274,77972.0,77943.0,0.0099589]
[1769893387098,0.00955274,77972.0,77938.0,0.00995762]
[1769893387295,0.00935654,77970.0,77938.0,0.00995762]
[1769893387500,0.00935654,77970.0,77936.0,0.00995762]
[1769893387695,0.09252,77973.0,77946.0,0.00995762]
[1769893387901,0.012839,77990.0,77953.0,0.00995762]
[1769893388104,0.012841,77977.0,77955.0,0.00995762]
[1769893388403,0.012841,77978.0,77955.0,0.00995762]
[1769893388805,0.01284,77981.0,77957.0,0.012844]
[1769893389009,0.012841,77979.0,77956.0,0.00995762]
[1769893389309,0.012841,77979.0,77957.0,0.00995762]
[1769893390105,0.00935654,77988.0,77957.0,0.00995762]
[1769893390306,0.012841,77976.0,77954.0,0.09248]
[1769893390507,0.012841,77977.0,77955.0,0.00995762]
[1769893390807,0.01284,77981.0,77956.0,0.012845]
[1769893391211,0.01284,77981.0,77956.0,0.02280262]
[1769893391411,0.01284,77984.0,77956.0,0.02280262]
[1769893391711,0.01284,77983.0,77958.0,0.00995762]
[1769893391912,0.012841,77979.0,77958.0,0.00995762]
[1769893392408,0.00935654,77994.0,77958.0,0.00995762]
[1769893392607,0.01284,77985.0,77965.0,0.00995762]
[1769893393007,0.01284,77985.0,77959.0,0.012844]
[1769893393307,0.01284,77985.0,77961.0,0.02280162]
[1769893393508,0.01284,77985.0,77962.0,0.00995762]
[1769893393707,0.00935654,78002.0,77969.0,0.00995762]
[1769893393914,0.00935654,78000.0,77955.0,0.00995762]
[1769893394211,0.00935654,77990.0,77955.0,0.02280262]
[1769893394507,0.01284,77983.0,77955.0,0.02280262]
[1769893394714,0.01284,77983.0,77957.0,0.012844]
[1769893395213,0.00935654,77981.0,77954.0,0.09248]
[1769893395408,0.012843,77968.0,77954.0,0.09248]
[1769893395806,0.00935654,77963.0,77931.0,0.00995762]
[1769893396003,0.012846,77950.0,77931.0,0.00995762]
[1769893396203,0.00935654,77956.0,77929.0,0.09248]
[1769893396403,0.02220454,77936.0,77911.0,0.012852]
[1769893396706,0.00935654,77932.0,77910.0,0.00012462]
[1769893396908,0.02220654,77926.0,77910.0,0.00012462]
[1769893397112,0.00935654,77926.0,77896.0,0.10243762]
[1769893397311,0.00935654,77926.0,77900.0,0.012854]
[1769893397511,0.00935654,77926.0,77900.0,0.02281162]
[1769893397512,0.01285,77926.0,77900.0,0.02281162]
[1769893398116,0.00011933,77925.0,77900.0,0.02281162]
[1769893398313,0.01285,77924.0,77900.0,0.012854]
[1769893398513,0.012851,77920.0,77896.0,0.09248]
[1769893398711,0.02220754,77920.0,77896.0,0.09248]
[1769893398914,0.012853,77903.0,77882.0,0.00995762]
[1769893399112,0.00933228,77910.0,77883.0,0.09248]
[1769893399320,0.012853,77905.0,77883.0,0.10243762]
[1769893399510,0.012852,77911.0,77884.0,0.00995762]
[1769893399914,0.012853,77908.0,77883.0,0.09248]
[1769893400114,0.012853,77905.0,77883.0,0.09248]
[1769893400615,0.12837547,77917.0,77883.0,0.09248]
[1769893400812,0.012852,77913.0,77887.0,0.02281362]
[1769893401013,0.12837959,77917.0,77889.0,0.00995762]
[1769893401213,0.17359428,77916.0,77889.0,0.00995762]
[1769893401412,0.17359428,77915.0,77889.0,0.00995762]
[1769893401614,0.012852,77913.0,77889.0,0.00995762]
[1769893401809,0.012852,77913.0,77885.0,0.012856]
[1769893402014,0.00935654,77919.0,77800.0,0.50906078]
[1769893402015,0.012853,77908.0,77871.0,0.00995762]
[1769893402318,0.012854,77902.0,77873.0,0.00995762]
[1769893402619,0.012855,77895.0,77874.0,0.09248]
[1769893402920,0.012855,77892.0,77874.0,0.09248]
[1769893403219,0.012855,77896.0,77874.0,0.09248]
[1769893403519,0.00935654,77898.0,77874.0,0.09248]
[1769893403830,0.00935654,77888.0,77869.0,0.00011187]
[1769893404012,0.012859,77870.0,77850.0,0.05]
[1769893404216,0.27294801,77887.0,77850.0,0.05]
[1769893404217,0.012859,77869.0,77850.0,0.05]
[1769893404416,0.00935654,77863.0,77850.0,0.04757172]
[1769893404714,0.012861,77859.0,77850.0,7.2e-07]
[1769893404910,0.012861,77854.0,77850.0,7.2e-07]
[1769893405108,0.012861,77854.0,77830.0,0.2682067]
[1769893405109,0.09262645,77853.0,77830.0,0.2682067]
[1769893405315,0.10198299,77853.0,77830.0,0.2682067]
[1769893405520,0.23041946,77853.0,77830.0,0.2682067]
[1769893406117,0.00010645,77853.0,77839.0,0.012864]
[1769893406312,0.00010645,77853.0,77831.0,0.012865]
[1769893406515,0.12846617,77852.0,77830.0,0.2682067]
[1769893406714,0.00935654,77846.0,77820.0,0.2682067]
[1769893407020,0.351299,77868.0,77820.0,0.2682067]
[1769893407021,0.00011375,77845.0,77821.0,0.00995762]
[1769893407217,0.00011375,77845.0,77820.0,0.2810737]
[1769893407218,0.00935654,77839.0,77820.0,0.2682067]
[1769893407418,0.00935654,77831.0,77797.0,0.0896594]
[1769893407626,0.00935654,77818.0,77797.0,0.0896594]
[1769893407815,0.012867,77823.0,77797.0,0.0896594]
[1769893408122,0.012866,77828.0,77801.0,0.19268019]
[1769893408315,0.012867,77821.0,77801.0,0.19268019]
[1769893408515,9.611e-05,77820.0,77810.0,0.2682067]
[1769893408718,0.09252,77830.0,77810.0,0.2682067]
[1769893408915,0.09252,77830.0,77813.0,0.19268019]
[1769893409115,0.00935654,77828.0,77796.0,0.00995762]
[1769893409317,0.012867,77821.0,77795.0,0.09252]
[1769893409621,0.00015704,77820.0,77795.0,0.09252]
[1769893409922,0.12867852,77820.0,77795.0,0.09252]
[1769893410123,0.012867,77819.0,77795.0,0.09252]
[1769893410312,0.14138848,77819.0,77795.0,0.09252]
[1769893410514,0.00935654,77813.0,77776.0,0.00995762]
[1769893410817,0.01287,77805.0,77777.0,0.09256]
[1769893411020,0.01287,77805.0,77778.0,0.19268019]
[1769893411215,0.00935654,77801.0,77777.0,0.09256]
[1769893411420,0.00935654,77789.0,77750.0,0.2682067]
[1769893411620,0.00935654,77787.0,77753.0,0.09256]